[Event "Titled Tuesday Blitz August 08 Late 2023"]
[White "Hajiyev, Kanan"]
[Black "Kukavica, Tony"]
[WhiteFideId "13404148"]
[BlackFideId "2062542"]
[WhiteElo "2556"]
[BlackElo "2340"]
[Result "1-0"]
[Round "6"]
[TimeControl "180+1"]
[Date "2023.08.08"]
[WhiteClock "0:00:30"]
[BlackClock "0:00:02"]
[Board "93"]

1. d4 {[%clk 0:03:00]}  d5 {[%clk 0:02:50]} 2. c4 {[%clk 0:02:59]}  e6 {[%clk 0:02:51]} 3. cxd5 {[%clk 0:03:00]}  exd5 {[%clk 0:02:48]} 4. Nc3 {[%clk 0:03:00]}  Nf6 {[%clk 0:02:48]} 5. Qc2 {[%clk 0:03:01]}  c6 {[%clk 0:02:47]} 6. Bg5 {[%clk 0:02:57]}  Be7 {[%clk 0:02:46]} 7. e3 {[%clk 0:02:57]}  O-O {[%clk 0:02:47]} 8. Bd3 {[%clk 0:02:58]}  Nbd7 {[%clk 0:02:46]} 9. Nge2 {[%clk 0:02:58]}  Re8 {[%clk 0:02:46]} 10. O-O {[%clk 0:02:59]}  h6 {[%clk 0:02:46]} 11. Bf4 {[%clk 0:02:58]}  Nh5 {[%clk 0:02:40]} 12. Nxd5 {[%clk 0:02:57]}  Nxf4 {[%clk 0:02:33]} 13. Ndxf4 {[%clk 0:02:58]}  Bd6 {[%clk 0:02:33]} 14. e4 {[%clk 0:02:40]}  Qg5 {[%clk 0:02:18]} 15. e5 {[%clk 0:02:37]}  Bb8 {[%clk 0:02:14]} 16. g3 {[%clk 0:02:28]}  c5 {[%clk 0:02:05]} 17. h4 {[%clk 0:02:28]}  Qg4 {[%clk 0:02:00]} 18. Bh7+ {[%clk 0:02:27]}  Kh8 {[%clk 0:01:56]} 19. Bf5 {[%clk 0:02:28]}  Qf3 {[%clk 0:01:51]} 20. Be4 {[%clk 0:01:57]}  Qg4 {[%clk 0:01:49]} 21. f3 {[%clk 0:01:54]}  Nxe5 {[%clk 0:01:07]} 22. fxg4 {[%clk 0:01:49]}  Nxg4 {[%clk 0:01:08]} 23. dxc5 {[%clk 0:01:40]}  Be5 {[%clk 0:01:04]} 24. Rf3 {[%clk 0:01:29]}  Bd7 {[%clk 0:00:53]} 25. Rd1 {[%clk 0:01:24]}  Bb5 {[%clk 0:00:50]} 26. b4 {[%clk 0:01:19]}  Rad8 {[%clk 0:00:46]} 27. Rxd8 {[%clk 0:01:17]}  Rxd8 {[%clk 0:00:47]} 28. Bf5 {[%clk 0:01:14]}  Nf6 {[%clk 0:00:42]} 29. Re3 {[%clk 0:01:04]}  Ba1 {[%clk 0:00:38]} 30. Qb1 {[%clk 0:00:57]}  Bd4 {[%clk 0:00:19]} 31. Nxd4 {[%clk 0:00:56]}  Rxd4 {[%clk 0:00:20]} 32. Qb3 {[%clk 0:00:43]}  Bc6 {[%clk 0:00:18]} 33. Qxf7 {[%clk 0:00:39]}  Rd1+ {[%clk 0:00:15]} 34. Kf2 {[%clk 0:00:40]}  g5 {[%clk 0:00:03]} 35. Qxf6+ {[%clk 0:00:38]}  Kg8 {[%clk 0:00:03]} 36. Be6+ {[%clk 0:00:31]}  Kh7 {[%clk 0:00:03]} 37. Qf7+ {[%clk 0:00:29]}  Kh8 {[%clk 0:00:02]} 38. Ng6# {[%clk 0:00:30]} 1-0


[Site "https://www.chess.com"]

[Event "Titled Tuesday Blitz August 08 Late 2023"]
[White "Ventura Bolet, Maxim"]
[Black "Harshavardhan G B"]
[WhiteFideId "22238824"]
[BlackFideId "25059009"]
[WhiteElo "2391"]
[BlackElo "2817"]
[Result "0-1"]
[Round "6"]
[TimeControl "180+1"]
[Date "2023.08.08"]
[WhiteClock "0:00:41"]
[BlackClock "0:01:12"]
[Board "97"]

1. e4 {[%clk 0:03:00]}  e6 {[%clk 0:02:55]} 2. Nf3 {[%clk 0:03:00]}  d5 {[%clk 0:02:53]} 3. e5 {[%clk 0:03:01]}  c5 {[%clk 0:02:52]} 4. b4 {[%clk 0:03:01]}  cxb4 {[%clk 0:02:52]} 5. a3 {[%clk 0:03:01]}  Nc6 {[%clk 0:02:52]} 6. axb4 {[%clk 0:03:01]}  Bxb4 {[%clk 0:02:53]} 7. c3 {[%clk 0:03:02]}  Be7 {[%clk 0:02:52]} 8. d4 {[%clk 0:03:03]}  f6 {[%clk 0:02:52]} 9. Bd3 {[%clk 0:03:02]}  fxe5 {[%clk 0:02:50]} 10. dxe5 {[%clk 0:03:03]}  Nh6 {[%clk 0:02:47]} 11. Bxh6 {[%clk 0:03:04]}  gxh6 {[%clk 0:02:48]} 12. Qd2 {[%clk 0:03:04]}  Bg5 {[%clk 0:02:46]} 13. Qe2 {[%clk 0:03:04]}  O-O {[%clk 0:02:44]} 14. h4 {[%clk 0:03:04]}  Be7 {[%clk 0:02:42]} 15. Qe3 {[%clk 0:03:00]}  Kg7 {[%clk 0:02:42]} 16. Rh3 {[%clk 0:03:00]}  Rxf3 {[%clk 0:02:25]} 17. Qxf3 {[%clk 0:02:41]}  Nxe5 {[%clk 0:02:15]} 18. Qg3+ {[%clk 0:02:40]}  Ng6 {[%clk 0:02:15]} 19. h5 {[%clk 0:02:39]}  Bd6 {[%clk 0:02:15]} 20. f4 {[%clk 0:02:19]}  Bxf4 {[%clk 0:02:10]} 21. Qf3 {[%clk 0:02:17]}  e5 {[%clk 0:02:07]} 22. hxg6 {[%clk 0:02:17]}  Bxh3 {[%clk 0:02:06]} 23. Qxh3 {[%clk 0:02:06]}  hxg6 {[%clk 0:02:04]} 24. Qg4 {[%clk 0:01:45]}  Qf6 {[%clk 0:01:56]} 25. Nd2 {[%clk 0:01:40]}  e4 {[%clk 0:01:51]} 26. Be2 {[%clk 0:01:32]}  Qxc3 {[%clk 0:01:43]} 27. Qd7+ {[%clk 0:01:17]}  Kh8 {[%clk 0:01:42]} 28. Rd1 {[%clk 0:01:00]}  Bxd2+ {[%clk 0:01:27]} 29. Kf1 {[%clk 0:00:47]}  Rf8+ {[%clk 0:01:23]} 30. Kg1 {[%clk 0:00:47]}  Qe3+ {[%clk 0:01:12]} 31. Kh1 {[%clk 0:00:41]}  Qxe2 {[%clk 0:01:12]} 0-1


[Site "https://www.chess.com"]

[Event "Titled Tuesday Blitz August 08 Late 2023"]
[White "Ncatt"]
[Black "Salemgareev, Tagir"]
[BlackFideId "24199052"]
[WhiteElo "2380"]
[BlackElo "2631"]
[Result "0-1"]
[Round "6"]
[TimeControl "180+1"]
[Date "2023.08.08"]
[WhiteClock "0:00:14"]
[BlackClock "0:00:16"]
[Board "100"]

1. e4 {[%clk 0:03:00]}  c5 {[%clk 0:02:55]} 2. Nf3 {[%clk 0:03:00]}  d6 {[%clk 0:02:54]} 3. Bb5+ {[%clk 0:03:00]}  Bd7 {[%clk 0:02:53]} 4. Bxd7+ {[%clk 0:03:00]}  Nxd7 {[%clk 0:02:53]} 5. O-O {[%clk 0:03:00]}  Ngf6 {[%clk 0:02:53]} 6. Qe2 {[%clk 0:02:59]}  g6 {[%clk 0:02:53]} 7. b3 {[%clk 0:02:59]}  Bg7 {[%clk 0:02:53]} 8. Bb2 {[%clk 0:02:59]}  O-O {[%clk 0:02:53]} 9. c4 {[%clk 0:02:59]}  a6 {[%clk 0:02:44]} 10. d4 {[%clk 0:02:59]}  cxd4 {[%clk 0:02:43]} 11. Nxd4 {[%clk 0:02:59]}  Qa5 {[%clk 0:02:43]} 12. Nc3 {[%clk 0:02:57]}  Rfe8 {[%clk 0:02:41]} 13. a3 {[%clk 0:02:53]}  Qh5 {[%clk 0:02:40]} 14. Qxh5 {[%clk 0:02:49]}  Nxh5 {[%clk 0:02:39]} 15. Nd5 {[%clk 0:02:49]}  Rac8 {[%clk 0:02:38]} 16. g4 {[%clk 0:02:23]}  Nhf6 {[%clk 0:02:36]} 17. f3 {[%clk 0:02:13]}  Nc5 {[%clk 0:02:34]} 18. Ne3 {[%clk 0:01:57]}  Nfd7 {[%clk 0:02:21]} 19. Rab1 {[%clk 0:01:44]}  Ne5 {[%clk 0:02:08]} 20. Ba1 {[%clk 0:01:35]}  Rb8 {[%clk 0:02:03]} 21. a4 {[%clk 0:01:33]}  Rbc8 {[%clk 0:02:00]} 22. Nd5 {[%clk 0:01:33]}  e6 {[%clk 0:01:57]} 23. Ne3 {[%clk 0:01:30]}  Ncd3 {[%clk 0:01:49]} 24. Ne2 {[%clk 0:01:22]}  Nb4 {[%clk 0:01:44]} 25. Kg2 {[%clk 0:01:19]}  Bh6 {[%clk 0:01:38]} 26. f4 {[%clk 0:01:15]}  Ned3 {[%clk 0:01:35]} 27. g5 {[%clk 0:01:13]}  Bf8 {[%clk 0:01:33]} 28. Ng4 {[%clk 0:01:11]}  Bg7 {[%clk 0:01:32]} 29. h4 {[%clk 0:01:07]}  Nc5 {[%clk 0:01:15]} 30. Bxg7 {[%clk 0:00:58]}  Kxg7 {[%clk 0:01:14]} 31. Nf6 {[%clk 0:00:58]}  Red8 {[%clk 0:01:11]} 32. h5 {[%clk 0:00:58]}  h6 {[%clk 0:01:00]} 33. Rh1 {[%clk 0:00:49]}  Rh8 {[%clk 0:00:57]} 34. Ng4 {[%clk 0:00:47]}  hxg5 {[%clk 0:00:46]} 35. h6+ {[%clk 0:00:45]}  Kf8 {[%clk 0:00:46]} 36. fxg5 {[%clk 0:00:42]}  Nxe4 {[%clk 0:00:46]} 37. Rhf1 {[%clk 0:00:34]}  Nxg5 {[%clk 0:00:45]} 38. Nd4 {[%clk 0:00:30]}  Ke7 {[%clk 0:00:44]} 39. Rbe1 {[%clk 0:00:25]}  f5 {[%clk 0:00:34]} 40. Ne3 {[%clk 0:00:18]}  Kd7 {[%clk 0:00:31]} 41. Rh1 {[%clk 0:00:17]}  Nd3 {[%clk 0:00:30]} 42. Rd1 {[%clk 0:00:17]}  Nf4+ {[%clk 0:00:29]} 43. Kg3 {[%clk 0:00:17]}  Nh5+ {[%clk 0:00:28]} 44. Kg2 {[%clk 0:00:16]}  Rxh6 {[%clk 0:00:27]} 45. b4 {[%clk 0:00:16]}  Nf4+ {[%clk 0:00:26]} 46. Kg3 {[%clk 0:00:16]}  Rxh1 {[%clk 0:00:25]} 47. Rxh1 {[%clk 0:00:16]}  Nh5+ {[%clk 0:00:26]} 48. Kh4 {[%clk 0:00:16]}  Ne4 {[%clk 0:00:25]} 49. Kh3 {[%clk 0:00:16]}  Nf2+ {[%clk 0:00:16]} 50. Kg2 {[%clk 0:00:16]}  Nxh1 {[%clk 0:00:16]} 51. Kxh1 {[%clk 0:00:17]}  f4 {[%clk 0:00:16]} 52. Nec2 {[%clk 0:00:15]}  Rxc4 {[%clk 0:00:16]} 53. Kg2 {[%clk 0:00:15]}  e5 {[%clk 0:00:16]} 54. Kf3 {[%clk 0:00:14]}  exd4 {[%clk 0:00:16]} 0-1


[Site "https://www.chess.com"]

[Event "Titled Tuesday Blitz August 08 Late 2023"]
[White "Rosen, Eric"]
[Black "Eggleston, Thomas A"]
[WhiteFideId "2032562"]
[BlackFideId "412139"]
[WhiteElo "2606"]
[BlackElo "2379"]
[Result "0-1"]
[Round "6"]
[TimeControl "180+1"]
[Date "2023.08.08"]
[WhiteClock "0:00:00"]
[BlackClock "0:00:27"]
[Board "101"]

1. Nf3 {[%clk 0:03:00]}  e6 {[%clk 0:02:58]} 2. e3 {[%clk 0:02:58]}  f5 {[%clk 0:02:58]} 3. b3 {[%clk 0:02:52]}  Nf6 {[%clk 0:02:58]} 4. Bb2 {[%clk 0:02:52]}  Be7 {[%clk 0:02:56]} 5. c4 {[%clk 0:02:40]}  O-O {[%clk 0:02:51]} 6. Nc3 {[%clk 0:02:40]}  b6 {[%clk 0:02:47]} 7. Be2 {[%clk 0:02:40]}  Bb7 {[%clk 0:02:47]} 8. Qc2 {[%clk 0:02:41]}  Ne4 {[%clk 0:02:31]} 9. h3 {[%clk 0:02:34]}  Bf6 {[%clk 0:02:30]} 10. Rg1 {[%clk 0:02:33]}  c5 {[%clk 0:02:13]} 11. g4 {[%clk 0:02:18]}  Bxc3 {[%clk 0:02:12]} 12. Bxc3 {[%clk 0:02:18]}  Nxc3 {[%clk 0:02:12]} 13. Qxc3 {[%clk 0:02:18]}  f4 {[%clk 0:02:12]} 14. O-O-O {[%clk 0:01:41]}  d5 {[%clk 0:02:07]} 15. Ne5 {[%clk 0:01:28]}  Nc6 {[%clk 0:02:03]} 16. Nxc6 {[%clk 0:01:22]}  Bxc6 {[%clk 0:02:03]} 17. Qe5 {[%clk 0:01:22]}  f3 {[%clk 0:01:58]} 18. Bd3 {[%clk 0:01:18]}  dxc4 {[%clk 0:01:25]} 19. Qxe6+ {[%clk 0:01:06]}  Kh8 {[%clk 0:01:24]} 20. Bxc4 {[%clk 0:01:04]}  b5 {[%clk 0:01:09]} 21. Qxc6 {[%clk 0:00:31]}  bxc4 {[%clk 0:01:09]} 22. Kc2 {[%clk 0:00:31]}  Qd3+ {[%clk 0:01:06]} 23. Kb2 {[%clk 0:00:27]}  Rab8 {[%clk 0:01:01]} 24. Qxc5 {[%clk 0:00:08]}  cxb3 {[%clk 0:00:57]} 25. Qc3 {[%clk 0:00:06]}  bxa2+ {[%clk 0:00:54]} 26. Ka1 {[%clk 0:00:06]}  Qe2 {[%clk 0:00:37]} 27. Rgf1 {[%clk 0:00:02]}  Rfc8 {[%clk 0:00:34]} 28. Qd4 {[%clk 0:00:00]}  Qa6 {[%clk 0:00:27]} 0-1


[Site "https://www.chess.com"]

[Event "Titled Tuesday Blitz August 08 Late 2023"]
[White "Veiga, Jose Francisco R P Neves"]
[Black "Necromon"]
[WhiteFideId "1930087"]
[WhiteElo "2565"]
[BlackElo "2378"]
[Result "1-0"]
[Round "6"]
[TimeControl "180+1"]
[Date "2023.08.08"]
[WhiteClock "0:00:19"]
[BlackClock "0:00:39"]
[Board "102"]

1. e4 {[%clk 0:02:50]}  c5 {[%clk 0:03:00]} 2. Nf3 {[%clk 0:02:41]}  Nc6 {[%clk 0:02:58]} 3. d4 {[%clk 0:02:31]}  cxd4 {[%clk 0:02:58]} 4. Nxd4 {[%clk 0:02:32]}  g6 {[%clk 0:02:58]} 5. Nc3 {[%clk 0:02:10]}  Bg7 {[%clk 0:02:56]} 6. Nb3 {[%clk 0:02:10]}  d6 {[%clk 0:02:54]} 7. Bc4 {[%clk 0:02:03]}  Nf6 {[%clk 0:02:54]} 8. O-O {[%clk 0:02:03]}  O-O {[%clk 0:02:53]} 9. Re1 {[%clk 0:01:47]}  Ne5 {[%clk 0:02:53]} 10. Bf1 {[%clk 0:01:42]}  Be6 {[%clk 0:02:30]} 11. Nd5 {[%clk 0:01:37]}  Rc8 {[%clk 0:02:24]} 12. Bg5 {[%clk 0:01:27]}  Bxd5 {[%clk 0:02:13]} 13. exd5 {[%clk 0:01:28]}  Nc4 {[%clk 0:02:12]} 14. Bxc4 {[%clk 0:01:27]}  Rxc4 {[%clk 0:02:11]} 15. Qe2 {[%clk 0:01:26]}  Rc7 {[%clk 0:02:02]} 16. Rad1 {[%clk 0:01:24]}  Qc8 {[%clk 0:02:00]} 17. c3 {[%clk 0:01:24]}  Re8 {[%clk 0:01:53]} 18. Qf3 {[%clk 0:01:22]}  Nd7 {[%clk 0:01:52]} 19. Qe3 {[%clk 0:01:09]}  a6 {[%clk 0:01:48]} 20. Bh6 {[%clk 0:01:09]}  b5 {[%clk 0:01:33]} 21. Bxg7 {[%clk 0:01:07]}  Kxg7 {[%clk 0:01:34]} 22. Rd4 {[%clk 0:01:04]}  Rc4 {[%clk 0:01:33]} 23. Na5 {[%clk 0:00:59]}  Rxd4 {[%clk 0:01:31]} 24. Qxd4+ {[%clk 0:01:00]}  Nf6 {[%clk 0:01:32]} 25. Nc6 {[%clk 0:01:00]}  Qf5 {[%clk 0:01:27]} 26. Rd1 {[%clk 0:00:48]}  h5 {[%clk 0:01:18]} 27. h3 {[%clk 0:00:47]}  e5 {[%clk 0:01:11]} 28. dxe6 {[%clk 0:00:47]}  Rxe6 {[%clk 0:01:10]} 29. Nb4 {[%clk 0:00:46]}  Kh7 {[%clk 0:01:09]} 30. Nxa6 {[%clk 0:00:44]}  Re4 {[%clk 0:01:07]} 31. Qxd6 {[%clk 0:00:41]}  h4 {[%clk 0:01:06]} 32. Nb4 {[%clk 0:00:40]}  Nh5 {[%clk 0:01:05]} 33. Qd5 {[%clk 0:00:38]}  Re5 {[%clk 0:01:03]} 34. Qd3 {[%clk 0:00:37]}  Qg5 {[%clk 0:01:00]} 35. Nd5 {[%clk 0:00:35]}  f5 {[%clk 0:00:51]} 36. Qxb5 {[%clk 0:00:23]}  Nf4 {[%clk 0:00:46]} 37. Qd7+ {[%clk 0:00:22]}  Kh6 {[%clk 0:00:46]} 38. Nxf4 {[%clk 0:00:22]}  Qxf4 {[%clk 0:00:46]} 39. Qd2 {[%clk 0:00:22]}  Kg5 {[%clk 0:00:46]} 40. Qxf4+ {[%clk 0:00:20]}  Kxf4 {[%clk 0:00:47]} 41. Rd4+ {[%clk 0:00:21]}  Kg5 {[%clk 0:00:47]} 42. Rd2 {[%clk 0:00:22]}  Kf6 {[%clk 0:00:46]} 43. Kf1 {[%clk 0:00:22]}  g5 {[%clk 0:00:47]} 44. b4 {[%clk 0:00:22]}  g4 {[%clk 0:00:46]} 45. Rb2 {[%clk 0:00:21]}  Kg5 {[%clk 0:00:45]} 46. b5 {[%clk 0:00:21]}  Re7 {[%clk 0:00:45]} 47. b6 {[%clk 0:00:22]}  Rb7 {[%clk 0:00:45]} 48. c4 {[%clk 0:00:22]}  f4 {[%clk 0:00:46]} 49. c5 {[%clk 0:00:21]}  f3 {[%clk 0:00:45]} 50. hxg4 {[%clk 0:00:20]}  Kxg4 {[%clk 0:00:44]} 51. Rb4+ {[%clk 0:00:20]}  Kg5 {[%clk 0:00:44]} 52. c6 {[%clk 0:00:19]}  Ra7 {[%clk 0:00:39]} 53. bxa7 {[%clk 0:00:19]} 1-0


[Site "https://www.chess.com"]

[Event "Titled Tuesday Blitz August 08 Late 2023"]
[White "Mendez Fortes, Eduardo Jesus"]
[Black "Korpics, Zsolt"]
[WhiteFideId "3502376"]
[BlackFideId "705241"]
[WhiteElo "2551"]
[BlackElo "2377"]
[Result "0-1"]
[Round "6"]
[TimeControl "180+1"]
[Date "2023.08.08"]
[WhiteClock "0:00:00"]
[BlackClock "0:00:04"]
[Board "103"]

1. a3 {[%clk 0:02:59]}  d5 {[%clk 0:02:59]} 2. d4 {[%clk 0:02:59]}  Nf6 {[%clk 0:02:59]} 3. Nf3 {[%clk 0:02:55]}  Bf5 {[%clk 0:02:58]} 4. c4 {[%clk 0:02:52]}  e6 {[%clk 0:02:55]} 5. Nc3 {[%clk 0:02:50]}  c6 {[%clk 0:02:45]} 6. Bg5 {[%clk 0:02:44]}  h6 {[%clk 0:02:38]} 7. Bh4 {[%clk 0:02:41]}  Be7 {[%clk 0:02:37]} 8. e3 {[%clk 0:02:41]}  O-O {[%clk 0:02:28]} 9. Be2 {[%clk 0:02:38]}  Nbd7 {[%clk 0:02:10]} 10. c5 {[%clk 0:02:29]}  Ne4 {[%clk 0:02:04]} 11. Nxe4 {[%clk 0:02:21]}  dxe4 {[%clk 0:01:51]} 12. Bxe7 {[%clk 0:02:19]}  Qxe7 {[%clk 0:01:52]} 13. Nd2 {[%clk 0:02:18]}  e5 {[%clk 0:01:52]} 14. Nb3 {[%clk 0:02:06]}  Rad8 {[%clk 0:01:48]} 15. O-O {[%clk 0:01:58]}  Nf6 {[%clk 0:01:33]} 16. Qc1 {[%clk 0:01:52]}  Be6 {[%clk 0:01:23]} 17. dxe5 {[%clk 0:01:48]}  Bxb3 {[%clk 0:01:17]} 18. exf6 {[%clk 0:01:48]}  Qxf6 {[%clk 0:01:18]} 19. Re1 {[%clk 0:01:38]}  Rd7 {[%clk 0:01:03]} 20. a4 {[%clk 0:01:37]}  Rfd8 {[%clk 0:01:01]} 21. Ra3 {[%clk 0:01:35]}  Be6 {[%clk 0:01:00]} 22. b4 {[%clk 0:01:35]}  Rd2 {[%clk 0:00:53]} 23. Rc3 {[%clk 0:01:10]}  Bg4 {[%clk 0:00:28]} 24. Rc2 {[%clk 0:01:07]}  Rxc2 {[%clk 0:00:16]} 25. Qxc2 {[%clk 0:01:07]}  Bxe2 {[%clk 0:00:17]} 26. Qxe2 {[%clk 0:01:07]}  Qc3 {[%clk 0:00:17]} 27. Rb1 {[%clk 0:01:03]}  Rd2 {[%clk 0:00:16]} 28. Qg4 {[%clk 0:00:57]}  Qc4 {[%clk 0:00:03]} 29. h4 {[%clk 0:00:45]}  g6 {[%clk 0:00:03]} 30. h5 {[%clk 0:00:45]}  g5 {[%clk 0:00:04]} 31. b5 {[%clk 0:00:40]}  Qd3 {[%clk 0:00:04]} 32. Rf1 {[%clk 0:00:36]}  cxb5 {[%clk 0:00:04]} 33. Qc8+ {[%clk 0:00:33]}  Kg7 {[%clk 0:00:04]} 34. Qxb7 {[%clk 0:00:30]}  bxa4 {[%clk 0:00:04]} 35. c6 {[%clk 0:00:30]}  Rc2 {[%clk 0:00:05]} 36. c7 {[%clk 0:00:21]}  Qc3 {[%clk 0:00:05]} 37. Qxe4 {[%clk 0:00:17]}  Qxc7 {[%clk 0:00:05]} 38. Qxa4 {[%clk 0:00:17]}  a5 {[%clk 0:00:05]} 39. Qd4+ {[%clk 0:00:15]}  f6 {[%clk 0:00:05]} 40. Qa1 {[%clk 0:00:11]}  Qc5 {[%clk 0:00:04]} 41. Rd1 {[%clk 0:00:00]}  Kf7 {[%clk 0:00:04]} 0-1


[Site "https://www.chess.com"]

[Event "Titled Tuesday Blitz August 08 Late 2023"]
[White "Real_taiatai"]
[Black "Slaby, Jerzy"]
[BlackFideId "1121405"]
[WhiteElo "2366"]
[BlackElo "2541"]
[Result "0-1"]
[Round "6"]
[TimeControl "180+1"]
[Date "2023.08.08"]
[WhiteClock "0:00:02"]
[BlackClock "0:01:05"]
[Board "104"]

1. d4 {[%clk 0:03:00]}  Nf6 {[%clk 0:02:57]} 2. c4 {[%clk 0:03:01]}  g6 {[%clk 0:02:57]} 3. Nc3 {[%clk 0:03:00]}  Bg7 {[%clk 0:02:57]} 4. e4 {[%clk 0:03:00]}  d6 {[%clk 0:02:57]} 5. Be2 {[%clk 0:03:01]}  O-O {[%clk 0:02:56]} 6. Nf3 {[%clk 0:02:59]}  e5 {[%clk 0:02:52]} 7. O-O {[%clk 0:02:58]}  Nc6 {[%clk 0:02:51]} 8. Be3 {[%clk 0:02:58]}  Ng4 {[%clk 0:02:50]} 9. Bg5 {[%clk 0:02:57]}  Bf6 {[%clk 0:02:49]} 10. Bxf6 {[%clk 0:02:48]}  Nxf6 {[%clk 0:02:48]} 11. dxe5 {[%clk 0:02:46]}  dxe5 {[%clk 0:02:46]} 12. Qxd8 {[%clk 0:02:21]}  Rxd8 {[%clk 0:02:45]} 13. Nd5 {[%clk 0:02:21]}  Nxe4 {[%clk 0:02:29]} 14. Nxc7 {[%clk 0:02:11]}  Rb8 {[%clk 0:02:28]} 15. Rad1 {[%clk 0:02:09]}  Bg4 {[%clk 0:02:26]} 16. Nd5 {[%clk 0:02:06]}  Kg7 {[%clk 0:02:21]} 17. Rfe1 {[%clk 0:02:01]}  Nc5 {[%clk 0:02:20]} 18. b4 {[%clk 0:01:52]}  Na4 {[%clk 0:02:12]} 19. b5 {[%clk 0:01:52]}  Bxf3 {[%clk 0:01:59]} 20. Bxf3 {[%clk 0:01:35]}  Nd4 {[%clk 0:01:57]} 21. Rxe5 {[%clk 0:01:34]}  Nxf3+ {[%clk 0:01:51]} 22. gxf3 {[%clk 0:01:34]}  Rbc8 {[%clk 0:01:52]} 23. Rd4 {[%clk 0:01:22]}  Nb2 {[%clk 0:01:43]} 24. Re7 {[%clk 0:01:16]}  Rxc4 {[%clk 0:01:43]} 25. Rxc4 {[%clk 0:01:03]}  Nxc4 {[%clk 0:01:44]} 26. Nf4 {[%clk 0:01:03]}  Rd4 {[%clk 0:01:37]} 27. Ne6+ {[%clk 0:00:19]}  Kf6 {[%clk 0:01:36]} 28. Rxb7 {[%clk 0:00:19]}  Kxe6 {[%clk 0:01:30]} 29. Rxa7 {[%clk 0:00:20]}  Rd6 {[%clk 0:01:29]} 30. a4 {[%clk 0:00:19]}  Rd1+ {[%clk 0:01:17]} 31. Kg2 {[%clk 0:00:20]}  Rb1 {[%clk 0:01:18]} 32. Rc7 {[%clk 0:00:19]}  Nd6 {[%clk 0:01:16]} 33. Rc6 {[%clk 0:00:18]}  h5 {[%clk 0:01:12]} 34. h4 {[%clk 0:00:15]}  Kd5 {[%clk 0:01:10]} 35. Ra6 {[%clk 0:00:14]}  Rb4 {[%clk 0:01:09]} 36. Kg3 {[%clk 0:00:14]}  Nf5+ {[%clk 0:01:09]} 37. Kg2 {[%clk 0:00:14]}  Nxh4+ {[%clk 0:01:09]} 38. Kh3 {[%clk 0:00:13]}  Nxf3 {[%clk 0:01:07]} 39. Rf6 {[%clk 0:00:13]}  Ne5 {[%clk 0:01:07]} 40. f4 {[%clk 0:00:13]}  Rb3+ {[%clk 0:01:05]} 41. Kh2 {[%clk 0:00:02]}  Ng4+ {[%clk 0:01:05]} 0-1


[Site "https://www.chess.com"]

[Event "Titled Tuesday Blitz August 08 Late 2023"]
[White "Janaszak, Dawid"]
[Black "K2JW"]
[WhiteFideId "1119206"]
[WhiteElo "2536"]
[BlackElo "2364"]
[Result "1-0"]
[Round "6"]
[TimeControl "180+1"]
[Date "2023.08.08"]
[WhiteClock "0:00:40"]
[BlackClock "0:00:00"]
[Board "105"]

1. c4 {[%clk 0:03:00]}  e6 {[%clk 0:02:53]} 2. Nc3 {[%clk 0:02:58]}  d5 {[%clk 0:02:53]} 3. d4 {[%clk 0:02:58]}  Nf6 {[%clk 0:02:52]} 4. g4 {[%clk 0:02:58]}  Nxg4 {[%clk 0:02:36]} 5. e4 {[%clk 0:02:56]}  Qh4 {[%clk 0:02:31]} 6. Nh3 {[%clk 0:02:55]}  dxe4 {[%clk 0:02:16]} 7. Bf4 {[%clk 0:02:41]}  Nxf2 {[%clk 0:02:05]} 8. Nxf2 {[%clk 0:02:41]}  Qxf4 {[%clk 0:02:05]} 9. Nfxe4 {[%clk 0:02:38]}  Bb4 {[%clk 0:01:49]} 10. Qa4+ {[%clk 0:02:38]}  Nc6 {[%clk 0:01:48]} 11. Bg2 {[%clk 0:02:05]}  Qe3+ {[%clk 0:01:35]} 12. Kf1 {[%clk 0:02:01]}  Qxd4 {[%clk 0:01:15]} 13. Bf3 {[%clk 0:01:27]}  O-O {[%clk 0:00:54]} 14. Rd1 {[%clk 0:01:27]}  Qe5 {[%clk 0:00:53]} 15. Rg1 {[%clk 0:01:19]}  Nd4 {[%clk 0:00:39]} 16. Rxd4 {[%clk 0:01:12]}  Qxd4 {[%clk 0:00:28]} 17. Qxb4 {[%clk 0:01:13]}  f5 {[%clk 0:00:26]} 18. Nf2 {[%clk 0:01:02]}  c5 {[%clk 0:00:15]} 19. Qb3 {[%clk 0:00:58]}  e5 {[%clk 0:00:12]} 20. Bd5+ {[%clk 0:00:55]}  Kh8 {[%clk 0:00:12]} 21. Ne2 {[%clk 0:00:55]}  Qh4 {[%clk 0:00:09]} 22. Qc3 {[%clk 0:00:53]}  Qe7 {[%clk 0:00:07]} 23. Nd3 {[%clk 0:00:48]}  e4 {[%clk 0:00:04]} 24. Ne5 {[%clk 0:00:48]}  Be6 {[%clk 0:00:05]} 25. Nf4 {[%clk 0:00:43]}  Bxd5 {[%clk 0:00:05]} 26. Nxd5 {[%clk 0:00:43]}  Qe6 {[%clk 0:00:00]} 27. Nd7 {[%clk 0:00:40]} 1-0


[Site "https://www.chess.com"]